[Event "Early-Titled-Tuesday-Blitz-January-30-2024"]
[Site "Chess.com"]
[Date "2024.01.30"]
[Round "5"]
[White "Iskusnyh"]
[Black "KhazhatulyAlikhan"]
[Result "1-0"]
[WhiteElo "2670"]
[BlackElo "2400"]
[TimeControl "180+1"]
[EndTime "8:53:41 PST"]
[Termination "Iskusnyh won by resignation"]

1. d4 {[%clk 0:03:00.9]} 1... d5 {[%clk 0:02:58.9]} 2. c4 {[%clk 0:02:59]} 2...
e6 {[%clk 0:02:59.2]} 3. Nf3 {[%clk 0:02:58.1]} 3... Nf6 {[%clk 0:02:59.8]} 4.
g3 {[%clk 0:02:57.6]} 4... Be7 {[%clk 0:03:00.4]} 5. Bg2 {[%clk 0:02:57.3]} 5...
dxc4 {[%clk 0:03:01.1]} 6. Qa4+ {[%clk 0:02:56.4]} 6... Bd7 {[%clk 0:02:49.3]}
7. Qxc4 {[%clk 0:02:55.3]} 7... Bc6 {[%clk 0:02:50]} 8. O-O {[%clk 0:02:52.2]}
8... O-O {[%clk 0:02:49.9]} 9. Nc3 {[%clk 0:02:45.4]} 9... Nbd7 {[%clk
0:02:49.7]} 10. Rd1 {[%clk 0:02:44.2]} 10... Nb6 {[%clk 0:02:50.1]} 11. Qd3
{[%clk 0:02:43.3]} 11... Nbd5 {[%clk 0:02:45.3]} 12. Ne5 {[%clk 0:02:09.7]}
12... Nb4 {[%clk 0:02:07.8]} 13. Nxc6 {[%clk 0:02:00.1]} 13... Nxd3 {[%clk
0:02:04.5]} 14. Nxd8 {[%clk 0:01:59.2]} 14... Nxc1 {[%clk 0:02:05.2]} 15. Nxb7
{[%clk 0:01:55.1]} 15... Rab8 {[%clk 0:01:44.8]} 16. Raxc1 {[%clk 0:01:54]} 1-0

[Event "Early-Titled-Tuesday-Blitz-January-30-2024"]
[Site "Chess.com"]
[Date "2024.01.30"]
[Round "5"]
[White "Ural_bogatyr"]
[Black "xamax2000"]
[Result "0-1"]
[WhiteElo "2540"]
[BlackElo "2863"]
[TimeControl "180+1"]
[EndTime "8:54:13 PST"]
[Termination "xamax2000 won by resignation"]

1. d4 {[%clk 0:02:26.5]} 1... d5 {[%clk 0:02:59.9]} 2. Nc3 {[%clk 0:02:24.5]}
2... Nf6 {[%clk 0:02:59.7]} 3. Bf4 {[%clk 0:02:23]} 3... c5 {[%clk 0:02:59.2]}
4. e4 {[%clk 0:02:22.3]} 4... cxd4 {[%clk 0:02:55.5]} 5. Qxd4 {[%clk 0:02:21.7]}
5... Nc6 {[%clk 0:02:56.1]} 6. Bb5 {[%clk 0:02:22.2]} 6... Bd7 {[%clk
0:02:56.5]} 7. Bxc6 {[%clk 0:02:22]} 7... Bxc6 {[%clk 0:02:57.4]} 8. e5 {[%clk
0:02:22.7]} 8... Nd7 {[%clk 0:02:57.6]} 9. e6 {[%clk 0:02:23]} 9... fxe6 {[%clk
0:02:58.5]} 10. Nf3 {[%clk 0:02:23.5]} 10... Qb6 {[%clk 0:02:58.9]} 11. Qxb6
{[%clk 0:02:23.1]} 11... axb6 {[%clk 0:02:55.2]} 12. O-O-O {[%clk 0:02:23.6]}
12... g5 {[%clk 0:02:51]} 13. Bxg5 {[%clk 0:02:22.9]} 13... Bg7 {[%clk
0:02:36.4]} 14. Rhe1 {[%clk 0:02:21.4]} 14... Bxc3 {[%clk 0:02:33.4]} 15. bxc3
{[%clk 0:02:21.3]} 15... Nc5 {[%clk 0:02:32.8]} 16. Nd4 {[%clk 0:02:13.4]} 16...
Kd7 {[%clk 0:02:31.8]} 17. Nb3 {[%clk 0:02:09]} 17... Rxa2 {[%clk 0:02:29.5]}
18. Nxc5+ {[%clk 0:02:06]} 18... bxc5 {[%clk 0:02:30.4]} 19. Be3 {[%clk
0:02:06.1]} 19... b6 {[%clk 0:02:29.1]} 20. Kd2 {[%clk 0:01:59.6]} 20... Ba4
{[%clk 0:02:26.2]} 21. Rc1 {[%clk 0:01:59.8]} 21... e5 {[%clk 0:02:20.6]} 22.
Bg5 {[%clk 0:01:58.3]} 22... e4 {[%clk 0:02:16]} 23. Bh4 {[%clk 0:01:53.4]}
23... Rg8 {[%clk 0:02:13.8]} 24. Bg3 {[%clk 0:01:53.3]} 24... h5 {[%clk
0:02:13.8]} 25. c4 {[%clk 0:01:41.3]} 25... e6 {[%clk 0:02:12]} 26. Re2 {[%clk
0:01:40]} 26... b5 {[%clk 0:02:10.7]} 27. f3 {[%clk 0:01:36.7]} 27... exf3
{[%clk 0:02:05.9]} 28. gxf3 {[%clk 0:01:37.5]} 28... bxc4 {[%clk 0:02:06.3]} 0-1

[Event "Early-Titled-Tuesday-Blitz-January-30-2024"]
[Site "Chess.com"]
[Date "2024.01.30"]
[Round "5"]
[White "AnaKuchava"]
[Black "leotobares"]
[Result "0-1"]
[WhiteElo "2204"]
[BlackElo "2342"]
[TimeControl "180+1"]
[EndTime "8:54:15 PST"]
[Termination "leotobares won by checkmate"]

1. d4 {[%clk 0:03:00.9]} 1... Nf6 {[%clk 0:02:43.2]} 2. Nf3 {[%clk 0:02:59.5]}
2... e6 {[%clk 0:02:42.3]} 3. c4 {[%clk 0:02:56.2]} 3... d5 {[%clk 0:02:38.3]}
4. Nc3 {[%clk 0:02:53.2]} 4... Bb4 {[%clk 0:02:36.6]} 5. Qa4+ {[%clk 0:02:51.9]}
5... Nc6 {[%clk 0:02:36.2]} 6. e3 {[%clk 0:02:50.1]} 6... Bd7 {[%clk 0:02:35.2]}
7. Qc2 {[%clk 0:02:49]} 7... O-O {[%clk 0:02:30.7]} 8. Bd3 {[%clk 0:02:47.1]}
8... dxc4 {[%clk 0:02:30.4]} 9. Bxc4 {[%clk 0:02:46.7]} 9... Bd6 {[%clk
0:02:30]} 10. e4 {[%clk 0:02:42.2]} 10... e5 {[%clk 0:02:29.4]} 11. d5 {[%clk
0:02:42]} 11... Ne7 {[%clk 0:02:23.7]} 12. O-O {[%clk 0:02:40.6]} 12... a6
{[%clk 0:02:23.2]} 13. Bg5 {[%clk 0:02:32.4]} 13... Ng6 {[%clk 0:02:21.9]} 14.
Rac1 {[%clk 0:02:21.5]} 14... h6 {[%clk 0:02:20.3]} 15. Bxf6 {[%clk 0:02:08]}
15... Qxf6 {[%clk 0:02:19.3]} 16. Bd3 {[%clk 0:02:08.7]} 16... Nf4 {[%clk
0:02:15.2]} 17. Rfe1 {[%clk 0:01:55.6]} 17... Nxg2 {[%clk 0:01:53.7]} 18. Kxg2
{[%clk 0:01:49.7]} 18... Bh3+ {[%clk 0:01:52.9]} 19. Kg1 {[%clk 0:01:31.6]}
19... Qg6+ {[%clk 0:01:47.2]} 20. Kh1 {[%clk 0:01:27.2]} 20... Qg2# {[%clk
0:01:46.3]} 0-1

[Event "Early-Titled-Tuesday-Blitz-January-30-2024"]
[Site "Chess.com"]
[Date "2024.01.30"]
[Round "5"]
[White "pfalcon1949"]
[Black "RamonManon0g"]
[Result "0-1"]
[WhiteElo "1954"]
[BlackElo "2390"]
[TimeControl "180+1"]
[EndTime "8:54:21 PST"]
[Termination "RamonManon0g won by resignation"]

1. e4 {[%clk 0:03:00.9]} 1... c5 {[%clk 0:02:56.8]} 2. Nf3 {[%clk 0:02:59.8]}
2... d6 {[%clk 0:02:57.1]} 3. d4 {[%clk 0:02:59.8]} 3... cxd4 {[%clk 0:02:58]}
4. Nxd4 {[%clk 0:02:59.6]} 4... Nf6 {[%clk 0:02:58.6]} 5. Nc3 {[%clk 0:02:59.7]}
5... a6 {[%clk 0:02:59.2]} 6. h3 {[%clk 0:02:58.3]} 6... e5 {[%clk 0:02:58.9]}
7. Nf3 {[%clk 0:02:58.2]} 7... h5 {[%clk 0:02:59.5]} 8. Bc4 {[%clk 0:02:49.5]}
8... Be7 {[%clk 0:02:58.3]} 9. Bg5 {[%clk 0:02:44.5]} 9... Nbd7 {[%clk
0:02:56.1]} 10. Bb3 {[%clk 0:02:40]} 10... O-O {[%clk 0:02:53.7]} 11. Bxf6
{[%clk 0:02:36.7]} 11... Nxf6 {[%clk 0:02:53.3]} 12. Qd2 {[%clk 0:02:36.5]}
12... b5 {[%clk 0:02:51.5]} 13. a3 {[%clk 0:02:35.2]} 13... Bb7 {[%clk
0:02:50.3]} 14. Bd5 {[%clk 0:02:33.6]} 14... Nxd5 {[%clk 0:02:30]} 15. Nxd5
{[%clk 0:02:32.3]} 15... Rc8 {[%clk 0:02:30.5]} 16. c3 {[%clk 0:02:31.2]} 16...
f5 {[%clk 0:02:23.1]} 17. exf5 {[%clk 0:02:25.7]} 17... Rxf5 {[%clk 0:02:24]}
18. Rd1 {[%clk 0:02:18.8]} 18... e4 {[%clk 0:02:14.2]} 19. Nxe7+ {[%clk
0:02:11]} 19... Qxe7 {[%clk 0:02:15.1]} 20. Nd4 {[%clk 0:02:08]} 20... e3 {[%clk
0:02:04.7]} 21. Qxe3 {[%clk 0:01:29.5]} 21... Re5 {[%clk 0:02:04.1]} 22. Nf5
{[%clk 0:01:14]} 22... Rxe3+ {[%clk 0:02:03.2]} 23. fxe3 {[%clk 0:01:13.5]}
23... Qe4 {[%clk 0:01:58.8]} 0-1

[Event "Early-Titled-Tuesday-Blitz-January-30-2024"]
[Site "Chess.com"]
[Date "2024.01.30"]
[Round "5"]
[White "Resignify"]
[Black "WindWhistler11"]
[Result "0-1"]
[WhiteElo "2277"]
[BlackElo "2462"]
[TimeControl "180+1"]
[EndTime "8:54:24 PST"]
[Termination "WindWhistler11 won by resignation"]

1. e4 {[%clk 0:03:00.9]} 1... e6 {[%clk 0:03:00.9]} 2. d3 {[%clk 0:03:00.8]}
2... d5 {[%clk 0:03:01.7]} 3. Nd2 {[%clk 0:03:01.2]} 3... Nf6 {[%clk 0:03:01.2]}
4. Ngf3 {[%clk 0:03:01.3]} 4... c5 {[%clk 0:02:58.2]} 5. g3 {[%clk 0:03:01.4]}
5... Nc6 {[%clk 0:02:58.6]} 6. Bg2 {[%clk 0:03:00.9]} 6... g6 {[%clk 0:02:59.2]}
7. O-O {[%clk 0:03:01.2]} 7... Bg7 {[%clk 0:02:59.9]} 8. Re1 {[%clk 0:03:01.7]}
8... O-O {[%clk 0:03:00.5]} 9. c3 {[%clk 0:02:55.8]} 9... b6 {[%clk 0:03:01]}
10. a3 {[%clk 0:02:48.8]} 10... a5 {[%clk 0:03:01.2]} 11. a4 {[%clk 0:02:41.9]}
11... Ba6 {[%clk 0:03:01.5]} 12. Bf1 {[%clk 0:02:41.2]} 12... Qc7 {[%clk
0:02:58.1]} 13. Qc2 {[%clk 0:02:25.9]} 13... Rad8 {[%clk 0:02:58]} 14. Rb1
{[%clk 0:02:23.6]} 14... Nd7 {[%clk 0:02:37]} 15. exd5 {[%clk 0:02:21.7]} 15...
exd5 {[%clk 0:02:36.2]} 16. Bg2 {[%clk 0:02:20.3]} 16... Nde5 {[%clk 0:02:32.8]}
17. Nxe5 {[%clk 0:02:19.1]} 17... Nxe5 {[%clk 0:02:33]} 18. c4 {[%clk
0:02:05.1]} 18... dxc4 {[%clk 0:02:25.1]} 19. dxc4 {[%clk 0:02:05.1]} 19... Nd3
{[%clk 0:02:22.6]} 20. Rd1 {[%clk 0:02:04.9]} 20... Nb4 {[%clk 0:02:20.4]} 21.
Qe4 {[%clk 0:01:57.1]} 21... Rd4 {[%clk 0:02:20.4]} 22. Qe1 {[%clk 0:01:49.7]}
22... Rfd8 {[%clk 0:02:18.3]} 23. b3 {[%clk 0:01:33.7]} 23... Nd3 {[%clk
0:02:09.5]} 24. Qf1 {[%clk 0:01:31.9]} 24... Nxc1 {[%clk 0:02:07.7]} 25. Rbxc1
{[%clk 0:01:29.9]} 25... Rxd2 {[%clk 0:02:07.8]} 26. Rxd2 {[%clk 0:01:29.8]}
26... Rxd2 {[%clk 0:02:08.7]} 27. Qe1 {[%clk 0:01:28.7]} 27... Rd8 {[%clk
0:02:04.3]} 28. Bd5 {[%clk 0:01:25.8]} 28... Bb7 {[%clk 0:02:04.2]} 29. Rd1
{[%clk 0:01:24.7]} 29... Bxd5 {[%clk 0:02:04.2]} 30. cxd5 {[%clk 0:01:25]} 30...
Bd4 {[%clk 0:02:04.3]} 31. Qe4 {[%clk 0:01:24.7]} 31... Qd6 {[%clk 0:02:04]} 0-1

[Event "Early-Titled-Tuesday-Blitz-January-30-2024"]
[Site "Chess.com"]
[Date "2024.01.30"]
[Round "5"]
[White "DonkyDonkyDonkey"]
[Black "Savagelittlemole"]
[Result "1-0"]
[WhiteElo "2747"]
[BlackElo "2483"]
[TimeControl "180+1"]
[EndTime "8:54:33 PST"]
[Termination "DonkyDonkyDonkey won by resignation"]

1. e4 {[%clk 0:03:00.9]} 1... c5 {[%clk 0:02:56.7]} 2. Nc3 {[%clk 0:02:59.6]}
2... d6 {[%clk 0:02:55.3]} 3. f4 {[%clk 0:02:57.9]} 3... g6 {[%clk 0:02:55.2]}
4. Nf3 {[%clk 0:02:56.7]} 4... Bg7 {[%clk 0:02:55.9]} 5. Bc4 {[%clk 0:02:57.3]}
5... e6 {[%clk 0:02:55.5]} 6. O-O {[%clk 0:02:57.8]} 6... Ne7 {[%clk 0:02:56.2]}
7. d3 {[%clk 0:02:58.5]} 7... O-O {[%clk 0:02:56.5]} 8. Qe1 {[%clk 0:02:53.6]}
8... Nbc6 {[%clk 0:02:55.8]} 9. f5 {[%clk 0:02:53.8]} 9... exf5 {[%clk 0:02:53]}
10. Qh4 {[%clk 0:02:53.8]} 10... d5 {[%clk 0:02:29.6]} 11. exd5 {[%clk
0:02:52.1]} 11... Ne5 {[%clk 0:02:07.4]} 12. Nxe5 {[%clk 0:02:47.6]} 12... Bxe5
{[%clk 0:02:08.3]} 13. Bg5 {[%clk 0:02:47.8]} 13... Re8 {[%clk 0:01:56.9]} 14.
Rae1 {[%clk 0:02:45.9]} 14... Bd6 {[%clk 0:00:36.8]} 15. Nb5 {[%clk 0:02:44]}
15... h6 {[%clk 0:00:15.4]} 16. Qxh6 {[%clk 0:02:36.9]} 1-0

[Event "Early-Titled-Tuesday-Blitz-January-30-2024"]
[Site "Chess.com"]
[Date "2024.01.30"]
[Round "5"]
[White "LangesNasenhaar"]
[Black "Korchmar_Vasiliy"]
[Result "1-0"]
[WhiteElo "2447"]
[BlackElo "2704"]
[TimeControl "180+1"]
[EndTime "8:54:52 PST"]
[Termination "LangesNasenhaar won by checkmate"]

1. d4 {[%clk 0:02:59.1]} 1... d5 {[%clk 0:02:59.2]} 2. Nc3 {[%clk 0:02:59.6]}
2... Bf5 {[%clk 0:02:56.3]} 3. f3 {[%clk 0:02:57.3]} 3... Nf6 {[%clk 0:02:55.4]}
4. g4 {[%clk 0:02:55.4]} 4... Bg6 {[%clk 0:02:53.3]} 5. h4 {[%clk 0:02:55.7]}
5... h5 {[%clk 0:02:52.5]} 6. g5 {[%clk 0:02:56.2]} 6... Nfd7 {[%clk 0:02:51.3]}
7. e4 {[%clk 0:02:56.4]} 7... dxe4 {[%clk 0:02:27.5]} 8. fxe4 {[%clk 0:02:53.3]}
8... e5 {[%clk 0:02:27.6]} 9. Nf3 {[%clk 0:02:39.3]} 9... Bb4 {[%clk 0:02:27.6]}
10. Bc4 {[%clk 0:02:30.6]} 10... O-O {[%clk 0:02:17.5]} 11. Be3 {[%clk
0:02:02.6]} 11... Bxe4 {[%clk 0:02:12.7]} 12. O-O {[%clk 0:01:59.7]} 12... exd4
{[%clk 0:01:54.5]} 13. Nxe4 {[%clk 0:01:36.5]} 13... dxe3 {[%clk 0:01:52.8]} 14.
g6 {[%clk 0:01:36.8]} 14... Nc6 {[%clk 0:01:35.4]} 15. Nfg5 {[%clk 0:01:25.7]}
15... Nce5 {[%clk 0:01:18.1]} 16. Qxh5 {[%clk 0:01:17.9]} 16... Nxg6 {[%clk
0:01:17.9]} 17. Qxg6 {[%clk 0:01:11.8]} 17... Ne5 {[%clk 0:01:18.3]} 18. Qh7#
{[%clk 0:01:11]} 1-0

[Event "Early-Titled-Tuesday-Blitz-January-30-2024"]
[Site "Chess.com"]
[Date "2024.01.30"]
[Round "5"]
[White "Eagle_2019"]
[Black "SaqoChess_Twitch"]
[Result "1-0"]
[WhiteElo "2812"]
[BlackElo "2584"]
[TimeControl "180+1"]
[EndTime "8:54:59 PST"]
[Termination "Eagle_2019 won by resignation"]

1. d4 {[%clk 0:03:00.9]} 1... d5 {[%clk 0:02:54.8]} 2. Nf3 {[%clk 0:02:58.8]}
2... e6 {[%clk 0:02:53.8]} 3. g3 {[%clk 0:02:58.1]} 3... Nf6 {[%clk 0:02:52.9]}
4. Bg2 {[%clk 0:02:58.2]} 4... Be7 {[%clk 0:02:53.2]} 5. O-O {[%clk 0:02:58.4]}
5... O-O {[%clk 0:02:53.9]} 6. c4 {[%clk 0:02:58.5]} 6... dxc4 {[%clk
0:02:54.5]} 7. Qc2 {[%clk 0:02:56.3]} 7... a6 {[%clk 0:02:53.2]} 8. a4 {[%clk
0:02:39]} 8... c5 {[%clk 0:02:49.5]} 9. dxc5 {[%clk 0:02:37.2]} 9... Bxc5 {[%clk
0:02:48.9]} 10. Bf4 {[%clk 0:02:32.9]} 10... Nbd7 {[%clk 0:02:38.2]} 11. Nbd2
{[%clk 0:02:27.6]} 11... Nd5 {[%clk 0:02:34.7]} 12. Nxc4 {[%clk 0:02:25.3]}
12... Nxf4 {[%clk 0:02:34.1]} 13. gxf4 {[%clk 0:02:26.2]} 13... b5 {[%clk
0:02:25.2]} 14. axb5 {[%clk 0:02:16.5]} 14... g6 {[%clk 0:02:02.7]} 15. Nfe5
{[%clk 0:02:09.2]} 15... Nxe5 {[%clk 0:01:51.6]} 16. Nxe5 {[%clk 0:02:05.7]}
16... Qc7 {[%clk 0:01:11.4]} 17. Rfc1 {[%clk 0:01:55.5]} 17... Bxf2+ {[%clk
0:01:10.5]} 18. Kxf2 {[%clk 0:01:54.5]} 18... Qb6+ {[%clk 0:00:55.9]} 19. Qc5
{[%clk 0:01:53.5]} 19... Rb8 {[%clk 0:00:56.6]} 20. bxa6 {[%clk 0:01:42.5]}
20... Bxa6 {[%clk 0:00:55.7]} 21. Qxb6 {[%clk 0:01:40.7]} 21... Rxb6 {[%clk
0:00:56.6]} 22. Nd7 {[%clk 0:01:40.6]} 1-0

[Event "Early-Titled-Tuesday-Blitz-January-30-2024"]
[Site "Chess.com"]
[Date "2024.01.30"]
[Round "5"]
[White "AldokhinIvan"]
[Black "WhiteKnight2612"]
[Result "1-0"]
[WhiteElo "2649"]
[BlackElo "2819"]
[TimeControl "180+1"]
[EndTime "8:55:04 PST"]
[Termination "AldokhinIvan won by resignation"]

1. e4 {[%clk 0:02:36.4]} 1... d6 {[%clk 0:02:56.1]} 2. d4 {[%clk 0:02:35.8]}
2... Nd7 {[%clk 0:02:54.7]} 3. Nc3 {[%clk 0:02:36.1]} 3... e5 {[%clk 0:02:54.9]}
4. Nf3 {[%clk 0:02:33]} 4... Ngf6 {[%clk 0:02:54.3]} 5. g4 {[%clk 0:02:33.4]}
5... Nxg4 {[%clk 0:02:52.5]} 6. Rg1 {[%clk 0:02:33.9]} 6... Ngf6 {[%clk
0:02:52.5]} 7. Bc4 {[%clk 0:02:34.4]} 7... h6 {[%clk 0:02:51.8]} 8. Be3 {[%clk
0:02:34.3]} 8... g6 {[%clk 0:02:51.2]} 9. Qd2 {[%clk 0:02:13.3]} 9... c6 {[%clk
0:02:50.5]} 10. dxe5 {[%clk 0:02:04.8]} 10... dxe5 {[%clk 0:02:49.1]} 11. O-O-O
{[%clk 0:02:05.2]} 11... Be7 {[%clk 0:02:47.9]} 12. Bxh6 {[%clk 0:01:55.3]}
12... b5 {[%clk 0:02:41.8]} 13. Bb3 {[%clk 0:01:39.9]} 13... b4 {[%clk
0:02:38.7]} 14. Na4 {[%clk 0:01:28.5]} 14... Nxe4 {[%clk 0:02:27.6]} 15. Qe3
{[%clk 0:01:26.6]} 15... f5 {[%clk 0:02:01.2]} 16. Nxe5 {[%clk 0:00:48.9]} 16...
Rxh6 {[%clk 0:01:39.9]} 17. Bf7+ {[%clk 0:00:47.9]} 1-0

[Event "Early-Titled-Tuesday-Blitz-January-30-2024"]
[Site "Chess.com"]
[Date "2024.01.30"]
[Round "5"]
[White "Maxfan2008"]
[Black "FontVella8"]
[Result "1-0"]
[WhiteElo "2519"]
[BlackElo "2756"]
[TimeControl "180+1"]
[EndTime "8:55:11 PST"]
[Termination "Maxfan2008 won by resignation"]

1. d4 {[%clk 0:02:59.4]} 1... d5 {[%clk 0:03:00.1]} 2. c4 {[%clk 0:02:58.3]}
2... e6 {[%clk 0:03:00.2]} 3. Nf3 {[%clk 0:02:57.7]} 3... Nf6 {[%clk 0:03:00.6]}
4. g3 {[%clk 0:02:55.6]} 4... Bb4+ {[%clk 0:03:00.5]} 5. Bd2 {[%clk 0:02:54.9]}
5... Be7 {[%clk 0:03:00.4]} 6. Bg2 {[%clk 0:02:53.3]} 6... O-O {[%clk
0:03:00.7]} 7. O-O {[%clk 0:02:51.2]} 7... c6 {[%clk 0:02:57.3]} 8. Nc3 {[%clk
0:02:50.1]} 8... b6 {[%clk 0:02:54]} 9. b3 {[%clk 0:02:49.3]} 9... Ba6 {[%clk
0:02:52.3]} 10. cxd5 {[%clk 0:02:47.8]} 10... cxd5 {[%clk 0:02:51.8]} 11. Rc1
{[%clk 0:02:47.8]} 11... Nbd7 {[%clk 0:02:50]} 12. Re1 {[%clk 0:02:45.3]} 12...
Rc8 {[%clk 0:02:47.6]} 13. a4 {[%clk 0:02:43.8]} 13... Ba3 {[%clk 0:02:40]} 14.
Rc2 {[%clk 0:02:42.5]} 14... Qe7 {[%clk 0:02:25.1]} 15. Nb5 {[%clk 0:02:40.9]}
15... Bxb5 {[%clk 0:02:16]} 16. axb5 {[%clk 0:02:40.2]} 16... Ne4 {[%clk
0:02:16.5]} 17. e3 {[%clk 0:02:33.7]} 17... Bb4 {[%clk 0:02:09.3]} 18. Bxb4
{[%clk 0:02:29.5]} 18... Qxb4 {[%clk 0:02:09.1]} 19. Qd3 {[%clk 0:02:28.7]}
19... Rxc2 {[%clk 0:01:55.9]} 20. Qxc2 {[%clk 0:02:29.6]} 20... Qxb5 {[%clk
0:01:56.5]} 21. Bf1 {[%clk 0:02:30.3]} 21... Qb4 {[%clk 0:01:54.5]} 22. Ra1
{[%clk 0:02:29.1]} 22... a5 {[%clk 0:01:50.4]} 23. Bd3 {[%clk 0:02:28.5]} 23...
Ndf6 {[%clk 0:01:48.9]} 24. Ne5 {[%clk 0:02:28.5]} 24... h6 {[%clk 0:01:45.5]}
25. Rc1 {[%clk 0:02:23.5]} 25... Qd2 {[%clk 0:01:23.9]} 26. Qxd2 {[%clk
0:02:16.7]} 26... Nxd2 {[%clk 0:01:24.2]} 27. Rc6 {[%clk 0:02:14.8]} 27... Rb8
{[%clk 0:01:18.2]} 28. Bc2 {[%clk 0:02:12.9]} 28... b5 {[%clk 0:01:16.6]} 29.
Ra6 {[%clk 0:02:11.1]} 29... a4 {[%clk 0:01:13.5]} 30. bxa4 {[%clk 0:02:10.1]}
30... b4 {[%clk 0:01:13.9]} 31. Nc6 {[%clk 0:02:06.7]} 31... b3 {[%clk
0:01:11.9]} 32. Bd3 {[%clk 0:02:01]} 32... Rb7 {[%clk 0:01:07]} 33. Ra8+ {[%clk
0:01:54.1]} 1-0

[Event "Early-Titled-Tuesday-Blitz-January-30-2024"]
[Site "Chess.com"]
[Date "2024.01.30"]
[Round "5"]
[White "stollenmonster"]
[Black "FabianoCaruana"]
[Result "0-1"]
[WhiteElo "2916"]
[BlackElo "3066"]
[TimeControl "180+1"]
[EndTime "8:55:32 PST"]
[Termination "FabianoCaruana won by resignation"]

1. e4 {[%clk 0:03:00.9]} 1... e5 {[%clk 0:02:58.9]} 2. Nc3 {[%clk 0:03:00.7]}
2... Nc6 {[%clk 0:02:58.3]} 3. g3 {[%clk 0:03:01.1]} 3... Bc5 {[%clk 0:02:57.4]}
4. Bg2 {[%clk 0:03:01.6]} 4... d6 {[%clk 0:02:57.8]} 5. Nge2 {[%clk 0:03:02]}
5... Nge7 {[%clk 0:02:57.8]} 6. d3 {[%clk 0:03:02]} 6... O-O {[%clk 0:02:57.8]}
7. O-O {[%clk 0:03:02.7]} 7... a6 {[%clk 0:02:56.2]} 8. h3 {[%clk 0:03:02.7]}
8... f5 {[%clk 0:02:56.3]} 9. exf5 {[%clk 0:03:02.1]} 9... Bxf5 {[%clk
0:02:55.7]} 10. Kh2 {[%clk 0:03:02.3]} 10... h6 {[%clk 0:02:51.3]} 11. f4 {[%clk
0:03:02.4]} 11... Be6 {[%clk 0:02:38]} 12. g4 {[%clk 0:03:00.1]} 12... exf4
{[%clk 0:02:27.4]} 13. d4 {[%clk 0:03:00.5]} 13... Ba7 {[%clk 0:02:19.4]} 14. d5
{[%clk 0:03:01]} 14... f3 {[%clk 0:02:17.3]} 15. Rxf3 {[%clk 0:02:57.6]} 15...
Rxf3 {[%clk 0:02:15.5]} 16. Bxf3 {[%clk 0:02:58]} 16... Ne5 {[%clk 0:02:15.6]}
17. Bg2 {[%clk 0:02:53.3]} 17... Bf7 {[%clk 0:02:14.8]} 18. Nf4 {[%clk
0:02:46.3]} 18... N7g6 {[%clk 0:02:10.2]} 19. Qe2 {[%clk 0:02:38.8]} 19... Qh4
{[%clk 0:02:04.6]} 20. Bd2 {[%clk 0:02:28.7]} 20... Re8 {[%clk 0:02:02.8]} 21.
Rf1 {[%clk 0:02:09.7]} 21... Nxf4 {[%clk 0:01:58.2]} 22. Bxf4 {[%clk 0:02:07]}
22... Ng6 {[%clk 0:01:57.2]} 23. Qc4 {[%clk 0:01:57.2]} 23... Nxf4 {[%clk
0:01:39.4]} 24. Qxf4 {[%clk 0:01:56.7]} 24... Qe7 {[%clk 0:01:14.4]} 25. Be4
{[%clk 0:01:14.3]} 25... Bd4 {[%clk 0:01:12]} 26. Qf5 {[%clk 0:01:14.6]} 26...
g6 {[%clk 0:01:07.4]} 0-1

[Event "Early-Titled-Tuesday-Blitz-January-30-2024"]
[Site "Chess.com"]
[Date "2024.01.30"]
[Round "5"]
[White "Der_Balak_3Halak"]
[Black "FREDERICKtheMATE"]
[Result "0-1"]
[WhiteElo "2343"]
[BlackElo "2573"]
[TimeControl "180+1"]
[EndTime "8:55:37 PST"]
[Termination "FREDERICKtheMATE won by resignation"]

1. e4 {[%clk 0:02:41.1]} 1... c5 {[%clk 0:02:58.1]} 2. Nf3 {[%clk 0:02:39.7]}
2... Nc6 {[%clk 0:02:58.3]} 3. Bb5 {[%clk 0:02:38.7]} 3... g6 {[%clk 0:02:58]}
4. O-O {[%clk 0:02:35]} 4... Bg7 {[%clk 0:02:58.4]} 5. c3 {[%clk 0:02:34.4]}
5... e5 {[%clk 0:02:58.2]} 6. d4 {[%clk 0:02:20.5]} 6... cxd4 {[%clk 0:02:59.1]}
7. cxd4 {[%clk 0:02:20.2]} 7... exd4 {[%clk 0:02:59.7]} 8. Bf4 {[%clk
0:02:18.4]} 8... Nge7 {[%clk 0:02:58.8]} 9. Bd6 {[%clk 0:02:17.6]} 9... a6
{[%clk 0:02:58.9]} 10. Bc4 {[%clk 0:02:15.8]} 10... b5 {[%clk 0:02:58.6]} 11.
Bb3 {[%clk 0:01:48.2]} 11... Bb7 {[%clk 0:02:58.1]} 12. Nbd2 {[%clk 0:01:43.3]}
12... Nc8 {[%clk 0:02:57.6]} 13. Bf4 {[%clk 0:01:29.9]} 13... O-O {[%clk
0:02:53.8]} 14. e5 {[%clk 0:01:30.1]} 14... d5 {[%clk 0:02:47]} 15. Re1 {[%clk
0:01:16.7]} 15... Re8 {[%clk 0:02:41.9]} 16. Rc1 {[%clk 0:01:11.6]} 16... Nb6
{[%clk 0:02:39.9]} 17. Nf1 {[%clk 0:01:05.7]} 17... Nc4 {[%clk 0:02:37.6]} 18.
Nxd4 {[%clk 0:00:57.8]} 18... N6xe5 {[%clk 0:02:34.7]} 19. Bxc4 {[%clk
0:00:29.6]} 19... dxc4 {[%clk 0:02:28.9]} 20. Bxe5 {[%clk 0:00:12.9]} 20... Bxe5
{[%clk 0:02:28]} 21. Nf3 {[%clk 0:00:08.7]} 21... Bxb2 {[%clk 0:02:24.5]} 22.
Rb1 {[%clk 0:00:05.9]} 22... Qxd1 {[%clk 0:02:18.6]} 23. Rexd1 {[%clk
0:00:04.9]} 23... c3 {[%clk 0:02:11.5]} 24. Ne1 {[%clk 0:00:01.9]} 24... Be4
{[%clk 0:02:08.1]} 25. f3 {[%clk 0:00:01.3]} 25... Bxb1 {[%clk 0:02:07.7]} 26.
Rxb1 {[%clk 0:00:02.2]} 26... Rxe1 {[%clk 0:02:07.4]} 27. Rxe1 {[%clk
0:00:01.8]} 27... c2 {[%clk 0:02:08]} 0-1